[Event "Klubbmästerskap 2025 Torsdagar"]
[Site "Linköping, Sweden"]
[Date "2025.02.27"]
[Round "5.6"]
[White "Garner, Mårten"]
[Black "Stefanovic, Dragan 1958"]
[Result "1/2-1/2"]
[TimeControl "90 min + 30 sec/move"]
[WhiteElo "1841"]
[BlackElo "1791"]

1. d4 {[%clk 01:30:56]} {[%emt 00:00:03]} Nf6 {[%clk 01:30:38]} {[%emt
00:00:22]} 2. c4 {[%clk 01:31:19]} {[%emt 00:00:07]} c5 {[%clk 01:30:18]}
{[%emt 00:00:50]} 3. d5 {[%clk 01:31:41]} {[%emt 00:00:08]} b5 {[%clk
01:30:16]} {[%emt 00:00:32]} 4. cxb5 {[%clk 01:31:40]} {[%emt 00:00:31]} a6
{[%clk 01:30:22]} {[%emt 00:00:25]} 5. f3 {[%clk 01:32:05]} {[%emt 00:00:05]}
axb5 {[%clk 01:10:43]} {[%emt 00:20:09]} 6. e4 {[%clk 01:31:47]} {[%emt
00:00:47]} Qa5+ {[%clk 01:09:32]} {[%emt 00:01:42]} 7. Bd2 {[%clk 01:31:57]}
{[%emt 00:00:20]} Qb6 {[%clk 01:09:50]} {[%emt 00:00:12]} 8. Na3 {[%clk
01:29:22]} {[%emt 00:03:04]} Ba6 {[%clk 01:08:50]} {[%emt 00:01:30]} 9. Rc1
{[%clk 01:16:08]} {[%emt 00:13:44]} e6 {[%clk 01:02:54]} {[%emt 00:06:26]} 10.
Qb3 {[%clk 01:04:29]} {[%emt 00:12:07]} exd5 {[%clk 00:51:50]} {[%emt
00:11:36]} 11. e5 {[%clk 01:01:21]} {[%emt 00:03:37]} c4 {[%clk 00:50:15]}
{[%emt 00:02:05]} 12. Nxc4 {[%clk 01:00:47]} {[%emt 00:01:04]} Qe6 {[%clk
00:48:30]} {[%emt 00:02:13]} 13. Ne3 {[%clk 00:58:05]} {[%emt 00:03:11]} Qxe5
{[%clk 00:46:47]} {[%emt 00:02:15]} 14. Kf2 {[%clk 00:45:43]} {[%emt 00:12:49]}
Bd6 {[%clk 00:41:26]} {[%emt 00:05:55]} 15. Bxb5 {[%clk 00:42:44]} {[%emt
00:03:29]} O-O {[%clk 00:41:05]} {[%emt 00:00:50]} 16. Ne2 {[%clk 00:36:19]}
{[%emt 00:06:55]} Bxb5 {[%clk 00:39:18]} {[%emt 00:02:17]} 17. Qxb5 {[%clk
00:36:31]} {[%emt 00:00:18]} Nc6 {[%clk 00:39:01]} {[%emt 00:00:48]} 18. Qd3
{[%clk 00:11:51]} {[%emt 00:25:08]} Rxa2 {[%clk 00:31:15]} {[%emt 00:08:18]} 19.
Bc3 {[%clk 00:11:01]} {[%emt 00:01:20]} Qe7 {[%clk 00:21:05]} {[%emt 00:10:37]}
20. Rhe1 {[%clk 00:05:46]} {[%emt 00:05:47]} Bc5 {[%clk 00:19:25]} {[%emt
00:02:10]} 21. Nd4 {[%clk 00:04:45]} {[%emt 00:01:31]} Qd6 {[%clk 00:07:08]}
{[%emt 00:12:47]} 22. g3 {[%clk 00:03:38]} {[%emt 00:01:37]} Bxd4 {[%clk
00:06:50]} {[%emt 00:00:47]} 23. Bxd4 {[%clk 00:03:56]} {[%emt 00:00:13]} Nxd4
{[%clk 00:07:16]} {[%emt 00:00:04]} 24. Qxd4 {[%clk 00:04:13]} {[%emt
00:00:13]} Rb8 {[%clk 00:06:09]} {[%emt 00:01:36]} 25. Rc2 {[%clk 00:03:53]}
{[%emt 00:00:50]} g6 {[%clk 00:04:43]} {[%emt 00:01:56]} 26. Rec1 {[%clk
00:02:58]} {[%emt 00:01:26]} Rb4 {[%clk 00:03:43]} {[%emt 00:01:31]} 27. Qc3
{[%clk 00:01:02]} {[%emt 00:02:26]} Qb6 {[%clk 00:04:07]} {[%emt 00:00:06]} 28.
Kg2 {[%clk 00:00:53]} {[%emt 00:00:39]} Raxb2 {[%clk 00:04:11]} {[%emt
00:00:26]} 29. Qe5 {[%clk 00:00:45]} {[%emt 00:00:38]} d4 {[%clk 00:02:54]}
{[%emt 00:01:47]} 30. Ng4 {[%clk 00:00:31]} {[%emt 00:00:45]} Nxg4 {[%clk
00:03:09]} {[%emt 00:00:14]} 31. fxg4 {[%clk 00:01:00]} Qc6+ {[%clk 00:03:15]}
{[%emt 00:00:25]} 32. Kh3 {[%clk 00:00:58]} {[%emt 00:00:33]} Rxc2 {[%clk
00:02:34]} {[%emt 00:01:11]} 33. Rxc2 {[%clk 00:00:33]} {[%emt 00:00:55]} Qxc2
{[%clk 00:02:57]} {[%emt 00:00:07]} 34. Qe8+ {[%clk 00:01:00]} {[%emt
00:00:02]} Kg7 {[%clk 00:03:25]} {[%emt 00:00:02]} 35. Qe5+ {[%clk 00:01:17]}
{[%emt 00:00:13]} Kf8 {[%clk 00:03:53]} {[%emt 00:00:02]} 36. Qd6+ {[%clk
00:01:11]} {[%emt 00:00:36]} Ke8 {[%clk 00:03:53]} {[%emt 00:00:31]} 37. Qxb4
{[%clk 00:01:22]} {[%emt 00:00:19]} Qc3 {[%clk 00:03:35]} {[%emt 00:00:48]} 38.
Qb8+ {[%clk 00:01:40]} {[%emt 00:00:12]} Ke7 {[%clk 00:03:51]} {[%emt
00:00:15]} 39. Qe5+ {[%clk 00:01:54]} {[%emt 00:00:16]} Kd8 {[%clk 00:04:18]}
{[%emt 00:00:03]} 40. Qb8+ {[%clk 00:01:01]} {[%emt 00:01:22]} Qc8 {[%clk
00:03:32]} {[%emt 00:01:15]} 41. Qb6+ {[%clk 00:01:28]} {[%emt 00:00:03]} Qc7
{[%clk 00:03:54]} {[%emt 00:00:09]} 42. Qxd4 {[%clk 00:01:47]} {[%emt
00:00:11]} 1/2-1/2

[Event "Klubbmästerskap 2025 Torsdagar"]
[Site "Linköping, Sweden"]
[Date "2025.02.27"]
[Round "5.7"]
[White "Lilljebjörn, Erik Gustaf"]
[Black "Qwarfort, Fredrik"]
[Result "1/2-1/2"]
[TimeControl "90 min + 30 sec/move"]
[WhiteElo "1783"]
[BlackElo "1826"]

1. e4 {[%clk 01:30:58]} {[%emt 00:00:01]} d6 {[%clk 01:30:56]} {[%emt
00:00:04]} 2. d4 {[%clk 01:31:18]} {[%emt 00:00:10]} Nf6 {[%clk 01:31:21]}
{[%emt 00:00:05]} 3. Nc3 {[%clk 01:31:40]} {[%emt 00:00:08]} g6 {[%clk
01:31:47]} {[%emt 00:00:04]} 4. Bg5 {[%clk 01:31:49]} {[%emt 00:00:21]} Bg7
{[%clk 01:32:07]} {[%emt 00:00:10]} 5. e5 {[%clk 01:31:54]} {[%emt 00:00:25]}
Nfd7 {[%clk 01:31:28]} {[%emt 00:01:09]} 6. exd6 {[%clk 01:30:55]} {[%emt
00:01:29]} cxd6 {[%clk 01:31:56]} {[%emt 00:00:02]} 7. Nf3 {[%clk 01:30:01]}
{[%emt 00:01:24]} Nb6 {[%clk 01:31:23]} {[%emt 00:01:04]} 8. a4 {[%clk
01:22:36]} {[%emt 00:07:56]} a5 {[%clk 01:30:36]} {[%emt 00:01:17]} 9. Bb5+
{[%clk 01:17:25]} {[%emt 00:05:41]} Bd7 {[%clk 01:29:15]} {[%emt 00:01:50]} 10.
Bxd7+ {[%clk 01:14:35]} {[%emt 00:03:20]} Qxd7 {[%clk 01:25:04]} {[%emt
00:04:41]} 11. Qe2 {[%clk 01:10:06]} {[%emt 00:04:59]} Nc6 {[%clk 01:14:40]}
{[%emt 00:10:55]} 12. Nb5 {[%clk 01:07:37]} {[%emt 00:02:58]} O-O {[%clk
01:12:34]} {[%emt 00:02:37]} 13. O-O {[%clk 01:04:06]} {[%emt 00:04:01]} h6
{[%clk 01:12:08]} {[%emt 00:00:55]} 14. Bf4 {[%clk 01:00:22]} {[%emt 00:04:07]}
g5 {[%clk 01:08:54]} {[%emt 00:03:51]} 15. Be3 {[%clk 00:56:42]} {[%emt
00:04:10]} d5 {[%clk 01:03:48]} {[%emt 00:05:36]} 16. Nd2 {[%clk 00:53:29]}
{[%emt 00:03:43]} Rac8 {[%clk 00:59:56]} {[%emt 00:04:22]} 17. Nb3 {[%clk
00:52:17]} {[%emt 00:01:41]} Nc4 {[%clk 00:44:31]} {[%emt 00:15:55]} 18. Nc5
{[%clk 00:43:05]} {[%emt 00:09:42]} Qe8 {[%clk 00:35:56]} {[%emt 00:09:05]} 19.
b3 {[%clk 00:36:04]} {[%emt 00:07:32]} b6 {[%clk 00:34:26]} {[%emt 00:02:01]}
20. Nd3 {[%clk 00:31:14]} {[%emt 00:05:19]} Nxe3 {[%clk 00:34:53]} {[%emt
00:00:02]} 21. Qxe3 {[%clk 00:29:01]} {[%emt 00:02:43]} Qd7 {[%clk 00:34:07]}
{[%emt 00:01:17]} 22. Rfe1 {[%clk 00:25:02]} {[%emt 00:04:28]} Qf5 {[%clk
00:30:17]} {[%emt 00:04:20]} 23. Rac1 {[%clk 00:24:36]} {[%emt 00:00:56]} Rfd8
{[%clk 00:29:54]} {[%emt 00:00:54]} 24. c3 {[%clk 00:23:55]} {[%emt 00:01:11]}
Qf6 {[%clk 00:24:34]} {[%emt 00:05:50]} 1/2-1/2

[Event "Klubbmästerskap 2025 Torsdagar"]
[Site "Linköping, Sweden"]
[Date "2025.02.27"]
[Round "5.8"]
[White "Ekman, Theo"]
[Black "Ahlström, Per"]
[Result "1-0"]
[TimeControl "90 min + 30 sec/move"]
[WhiteElo "1806"]
[BlackElo "1820"]

1. e4 {[%clk 01:30:57]} {[%emt 00:00:02]} c5 {[%clk 01:30:51]} {[%emt
00:00:09]} 2. Nc3 {[%clk 01:31:19]} {[%emt 00:00:07]} g6 {[%clk 01:30:22]}
{[%emt 00:00:59]} 3. d4 {[%clk 01:31:18]} {[%emt 00:00:32]} Bg7 {[%clk
01:28:26]} {[%emt 00:02:26]} 4. dxc5 {[%clk 01:31:36]} {[%emt 00:00:12]} Nc6
{[%clk 01:27:46]} {[%emt 00:01:10]} 5. Bf4 {[%clk 01:20:28]} {[%emt 00:11:37]}
a6 {[%clk 00:42:08]} {[%emt 00:46:09]} 6. Qd2 {[%clk 01:18:42]} {[%emt
00:02:15]} Nf6 {[%clk 00:35:27]} {[%emt 00:07:12]} 7. Be2 {[%clk 01:17:14]}
{[%emt 00:01:57]} h5 {[%clk 00:26:07]} {[%emt 00:09:51]} 8. Nf3 {[%clk
01:14:46]} {[%emt 00:02:58]} Qa5 {[%clk 00:22:58]} {[%emt 00:03:39]} 9. h3
{[%clk 01:10:09]} {[%emt 00:05:07]} Qxc5 {[%clk 00:19:19]} {[%emt 00:04:09]} 10.
e5 {[%clk 01:07:30]} {[%emt 00:03:09]} Ng8 {[%clk 00:12:06]} {[%emt 00:07:42]}
11. Nd5 {[%clk 01:06:16]} {[%emt 00:01:44]} Kf8 {[%clk 00:11:04]} {[%emt
00:01:33]} 12. Be3 {[%clk 01:04:38]} {[%emt 00:02:08]} Qa5 {[%clk 00:10:38]}
{[%emt 00:00:56]} 13. Qxa5 {[%clk 01:00:19]} {[%emt 00:04:48]} 1-0